fUST/lending_fUST_20250218
["ID","MTS","AMOUNT","RATE_DAILY","PERIOD"]
[353395163,1739813432298,-1100.0,0.00011763,2]
[353395164,1739813432307,-24900.0,0.00011778,2]
[353395165,1739813432317,-250.0,0.00011884,2]
[353395166,1739813432326,-356.64061153,0.000129,2]
[353395167,1739813432336,-356.64061152,0.000129,2]
[353395168,1739813432346,-160.0,0.00013068,3]
[353395169,1739813432355,-1100.0,0.00013133,2]
[353395170,1739813432365,-2292.0,0.00013281,2]
[353395171,1739813432374,-396.0,0.00013281,2]
[353395172,1739813432383,-150.0,0.00013281,2]
[353395173,1739813432394,-356.64061152,0.00013531,2]
[353395174,1739813432404,-527.204,0.00013556,2]
[353395175,1739813432415,-176.9115071,0.00013556,2]
[353395176,1739813432424,-152.0,0.00013583,2]
[353395177,1739813432434,-32255.12642503,0.000136,2]
[353395178,1739813437977,-538.0,0.00013281,2]
[353395179,1739813437987,-500.0,0.00013599,2]
[353395180,1739813437997,-363.75184947,0.00013599,2]
[353395181,1739813438007,-500.0,0.00013599,2]
[353395182,1739813438017,-500.0,0.00013599,2]
[353395183,1739813438026,-500.0,0.00013599,2]
[353395184,1739813438036,-500.0,0.00013599,2]
[353395185,1739813438048,-500.0,0.00013599,2]
[353395186,1739813438057,-333.41228288,0.00013599,2]
[353395187,1739813438067,-500.0,0.00013599,2]
[353395188,1739813438077,-500.0,0.00013599,2]
[353395189,1739813438086,-500.0,0.00013599,2]
[353395190,1739813438095,-500.0,0.00013599,2]
[353395191,1739813438105,-500.0,0.00013599,2]
[353395192,1739813438115,-500.0,0.00013599,2]
[353395194,1739813438125,-500.0,0.00013599,2]
[353395196,1739813438134,-500.0,0.00013599,2]
[353395198,1739813438143,-500.0,0.00013599,2]
[353395199,1739813438152,-500.0,0.00013599,2]
[353395200,1739813438161,-500.0,0.00013599,2]
[353395201,1739813438171,-500.0,0.00013599,2]
[353395202,1739813438180,-589.89129373,0.00013599,2]
[353395203,1739813438189,-500.0,0.00013599,2]
[353395204,1739813438198,-11673.75561442,0.000136,2]
[353395205,1739813438207,-160.0,0.00013639,4]
[353395206,1739813438217,-501.05051859,0.00013694,2]
[353395207,1739813438227,-500.0,0.00013698,2]
[353395208,1739813438236,-621.47299609,0.00013698,2]
[353395209,1739813438245,-500.0,0.00013698,2]
[353395210,1739813438255,-614.22994079,0.00013698,2]
[353395211,1739813438264,-500.0,0.00013698,2]
[353395212,1739813438273,-505.80435576,0.00013698,2]
[353395213,1739813438283,-500.0,0.00013698,2]
[353395214,1739813438293,-500.0,0.00013698,2]
[353395215,1739813438303,-500.0,0.00013698,2]
[353395216,1739813438313,-500.0,0.00013698,2]
[353395217,1739813438323,-500.0,0.00013698,2]
[353395218,1739813438332,-500.0,0.00013698,2]
[353395219,1739813438341,-500.0,0.00013698,2]
[353395220,1739813438350,-408.39904798,0.00013698,2]
[353395221,1739813438360,-500.0,0.00013698,2]
[353395222,1739813438369,-500.0,0.00013698,2]
[353395223,1739813438378,-322.49901301,0.00013698,2]
[353395224,1739813438388,-500.0,0.00013698,2]
[353395225,1739813438398,-500.0,0.00013698,2]
[353395226,1739813438407,-500.0,0.00013698,2]
[353395227,1739813438418,-500.0,0.00013698,2]
[353395228,1739813438427,-500.0,0.00013698,2]
[353395229,1739813438438,-500.0,0.00013698,2]
[353395230,1739813438447,-473.39001856,0.00013698,2]
[353395231,1739813438457,-500.0,0.00013698,2]
[353395232,1739813438467,-500.0,0.00013698,2]
[353395233,1739813438477,-500.0,0.00013698,2]
[353395234,1739813438487,-500.0,0.00013698,2]
[353395235,1739813438496,-500.0,0.00013698,2]
[353395236,1739813438505,-500.0,0.00013698,2]
[353395237,1739813438515,-500.0,0.00013698,2]
[353395238,1739813438524,-181.70454279,0.00013698,2]
[353395239,1739813438533,-502.3868348,0.00013698,2]
[353395240,1739813438543,-500.0,0.00013698,2]
[353395241,1739813438553,-500.0,0.00013698,2]
[353395242,1739813438562,-500.0,0.00013698,2]
[353395243,1739813438571,-500.0,0.00013698,2]
[353395244,1739813438581,-500.0,0.00013698,2]
[353395245,1739813438590,-500.0,0.00013698,2]
[353395246,1739813438599,-201.09832082,0.00013698,2]
[353395247,1739813438608,-500.0,0.00013698,2]
[353395248,1739813438618,-500.0,0.00013698,2]
[353395249,1739813438628,-500.0,0.00013698,2]
[353395250,1739813438638,-500.0,0.00013698,2]
[353395251,1739813438650,-500.0,0.00013698,2]
[353395252,1739813438659,-500.0,0.00013698,2]
[353395253,1739813438670,-500.0,0.00013698,2]
[353395254,1739813438680,-500.0,0.00013698,2]
[353395255,1739813438689,-500.0,0.00013698,2]
[353395256,1739813438699,-500.0,0.00013698,2]
[353395257,1739813438709,-500.0,0.00013698,2]
[353395258,1739813438720,-500.0,0.00013698,2]
[353395259,1739813438731,-500.0,0.00013698,2]
[353395260,1739813438742,-500.0,0.00013698,2]
[353395261,1739813438751,-500.0,0.00013698,2]
[353395262,1739813438761,-554.26,0.00013698,2]
[353395263,1739813438771,-500.0,0.00013698,2]
[353395264,1739813438782,-500.0,0.00013698,2]
[353395265,1739813438794,-500.0,0.00013698,2]
[353395266,1739813438804,-500.0,0.00013698,2]
[353395267,1739813438813,-500.0,0.00013698,2]
[353395268,1739813438823,-500.0,0.00013698,2]
[353395269,1739813438833,-500.0,0.00013698,2]
[353395270,1739813438842,-500.0,0.00013698,2]
[353395271,1739813438852,-500.0,0.00013698,2]
[353395272,1739813438862,-500.0,0.00013698,2]
[353395273,1739813438875,-500.0,0.00013698,2]
[353395274,1739813438885,-469.46010992,0.00013698,2]
[353395275,1739813438895,-500.0,0.00013698,2]
[353395276,1739813438904,-500.0,0.00013698,2]
[353395277,1739813438916,-500.0,0.00013698,2]
[353395278,1739813438926,-500.0,0.00013698,2]
[353395279,1739813438936,-152.71,0.00013698,2]
[353395280,1739813438946,-500.0,0.00013698,2]
[353395281,1739813438957,-500.0,0.00013698,2]
[353395282,1739813438966,-500.0,0.00013698,2]
[353395283,1739813438976,-500.0,0.00013698,2]
[353395284,1739813438985,-500.0,0.00013698,2]
[353395285,1739813438994,-500.0,0.00013698,2]
[353395286,1739813439004,-532.51,0.00013698,2]
[353395287,1739813439014,-500.0,0.00013698,2]
[353395288,1739813439024,-500.0,0.00013698,2]
[353395289,1739813439033,-500.0,0.00013698,2]
[353395290,1739813439046,-500.0,0.00013698,2]
[353395291,1739813439055,-500.0,0.00013698,2]
[353395292,1739813439064,-500.0,0.00013698,2]
[353395293,1739813439074,-500.0,0.00013698,2]
[353395294,1739813439083,-500.0,0.00013698,2]
[353395295,1739813439094,-500.0,0.00013698,2]
[353395296,1739813439103,-500.0,0.00013698,2]
[353395297,1739813439113,-512.59828204,0.00013698,2]
[353395298,1739813439124,-500.0,0.00013698,2]
[353395299,1739813439134,-500.0,0.00013698,2]
[353395300,1739813439144,-500.0,0.00013698,2]
[353395301,1739813439153,-500.0,0.00013698,2]
[353395302,1739813439163,-500.0,0.00013698,2]
[353395303,1739813439172,-425.56654781,0.00013698,2]
[353395304,1739813439182,-402.692963,0.00013699,2]
[353395305,1739813439192,-564.85485951,0.00013699,2]
[353395306,1739813439201,-500.0,0.00013699,2]
[353395307,1739813439211,-564.85485951,0.00013699,2]
[353395308,1739813439221,-564.85485951,0.00013699,2]
[353395309,1739813439231,-500.0,0.00013699,2]
[353395310,1739813439241,-564.85485951,0.00013699,2]
[353395311,1739813439250,-564.85485951,0.00013699,2]
[353395312,1739813439260,-532.547,0.00013699,2]
[353395313,1739813439269,-564.85485951,0.00013699,2]
[353395314,1739813439279,-564.85485951,0.00013699,2]
[353395315,1739813439288,-564.85485951,0.00013699,2]
[353395316,1739813439299,-564.85485951,0.00013699,2]
[353395317,1739813439308,-564.85485951,0.00013699,2]
[353395318,1739813439318,-564.85485951,0.00013699,2]
[353395319,1739813439328,-564.85485951,0.00013699,2]
[353395320,1739813439338,-564.85485951,0.00013699,2]
[353395321,1739813439347,-564.85485951,0.00013699,2]
[353395322,1739813439358,-564.85485951,0.00013699,2]
[353395323,1739813439480,-564.85485951,0.00013699,2]
[353395324,1739813439491,-564.85485951,0.00013699,2]
[353395325,1739813439501,-564.85485951,0.00013699,2]
[353395326,1739813439511,-564.85485951,0.00013699,2]
[353395327,1739813439521,-564.85485951,0.00013699,2]
[353395328,1739813439531,-564.85485951,0.00013699,2]
[353395329,1739813439542,-564.85485951,0.00013699,2]
[353395330,1739813439551,-564.85485951,0.00013699,2]
[353395331,1739813439561,-564.85485951,0.00013699,2]
[353395332,1739813439571,-564.85485951,0.00013699,2]
[353395333,1739813439580,-564.85485951,0.00013699,2]
[353395334,1739813439590,-564.85485951,0.00013699,2]
[353395335,1739813439600,-564.85485951,0.00013699,2]
[353395336,1739813439610,-564.85485951,0.00013699,2]
[353395337,1739813439620,-564.85485951,0.00013699,2]
[353395338,1739813439629,-564.85485951,0.00013699,2]
[353395339,1739813439639,-564.85485951,0.00013699,2]
[353395340,1739813439648,-564.85485951,0.00013699,2]
[353395341,1739813439658,-564.85485951,0.00013699,2]
[353395342,1739813439668,-564.85485951,0.00013699,2]
[353395343,1739813439678,-564.85485951,0.00013699,2]
[353395344,1739813439688,-564.85485951,0.00013699,2]
[353395345,1739813439698,-564.85485951,0.00013699,2]
[353395346,1739813439708,-564.85485951,0.00013699,2]
[353395347,1739813439720,-564.85485951,0.00013699,2]
[353395348,1739813439729,-564.85485951,0.00013699,2]
[353395349,1739813439739,-564.85485951,0.00013699,2]
[353395350,1739813439748,-564.85485951,0.00013699,2]
[353395351,1739813439758,-564.85485951,0.00013699,2]
[353395353,1739813439768,-564.85485951,0.00013699,2]
[353395355,1739813439778,-564.85485951,0.00013699,2]
[353395356,1739813439787,-564.85485951,0.00013699,2]
[353395357,1739813439799,-564.85485951,0.00013699,2]
[353395358,1739813439808,-564.85485951,0.00013699,2]
[353395360,1739813439818,-564.85485951,0.00013699,2]
[353395361,1739813439827,-564.85485951,0.00013699,2]
[353395362,1739813439837,-564.85485951,0.00013699,2]
[353395363,1739813439846,-804.42138366,0.00013779,2]
[353395364,1739813439855,-500.0,0.0001378,2]
[353395365,1739813439867,-367.52,0.0001378,2]
[353395366,1739813439880,-500.0,0.0001378,2]
[353395367,1739813439890,-500.0,0.0001378,2]
[353395368,1739813439900,-361.24,0.0001378,2]
[353395369,1739813439910,-348.0,0.0001378,2]
[353395370,1739813439920,-500.0,0.0001378,2]
[353395371,1739813439930,-500.0,0.0001378,2]
[353395372,1739813439939,-500.0,0.0001378,2]
[353395373,1739813439951,-500.0,0.0001378,2]
[353395374,1739813439961,-500.0,0.0001378,2]
[353395375,1739813439970,-582.4,0.0001378,2]
[353395376,1739813439979,-500.0,0.0001378,2]
[353395377,1739813439989,-500.0,0.0001378,2]
[353395378,1739813439998,-500.0,0.0001378,2]
[353395379,1739813440008,-500.0,0.0001378,2]
[353395380,1739813440017,-500.0,0.0001378,2]
[353395381,1739813440027,-500.0,0.0001378,2]
[353395382,1739813440037,-500.0,0.0001378,2]
[353395383,1739813440048,-500.0,0.0001378,2]
[353395384,1739813440058,-500.0,0.0001378,2]
[353395385,1739813440067,-500.0,0.0001378,2]
[353395386,1739813440077,-500.0,0.0001378,2]
[353395387,1739813440087,-500.0,0.0001378,2]
[353395388,1739813440097,-617.69,0.0001378,2]
[353395389,1739813440106,-500.0,0.0001378,2]
[353395390,1739813440115,-500.0,0.0001378,2]
[353395391,1739813440125,-500.0,0.0001378,2]
[353395392,1739813440134,-500.0,0.0001378,2]
[353395393,1739813440144,-500.0,0.0001378,2]
[353395395,1739813440154,-387.79,0.0001378,2]
[353395397,1739813440163,-171.79587479,0.000138,2]
[353395398,1739813440173,-508.44,0.00013863,2]
[353395399,1739813440183,-310.62,0.00013863,2]
[353395400,1739813440192,-451.44,0.00013863,2]
[353395401,1739813440201,-500.0,0.00013863,2]
[353395402,1739813440211,-500.0,0.00013863,2]
[353395403,1739813440221,-500.0,0.00013863,2]
[353395404,1739813440230,-500.0,0.00013863,2]
[353395405,1739813440239,-542.81,0.00013863,2]
[353395406,1739813440250,-500.0,0.00013863,2]
[353395407,1739813440260,-500.0,0.00013863,2]
[353395408,1739813440270,-500.0,0.00013863,2]
[353395409,1739813440279,-500.0,0.00013863,2]
[353395410,1739813440290,-500.0,0.00013863,2]
[353395411,1739813440299,-500.0,0.00013863,2]
[353395412,1739813440308,-500.0,0.00013863,2]
[353395413,1739813440318,-500.0,0.00013863,2]
[353395414,1739813440328,-500.0,0.00013863,2]
[353395415,1739813440337,-500.0,0.00013863,2]
[353395416,1739813440346,-500.0,0.00013863,2]
[353395417,1739813440355,-500.0,0.00013863,2]
[353395418,1739813440364,-500.0,0.00013863,2]
[353395419,1739813440373,-804.42138366,0.00013879,2]
[353395420,1739813440383,-500.0,0.000139,7]
[353395421,1739813440393,-500.0,0.000139,7]
[353395422,1739813440402,-500.0,0.000139,7]
[353395423,1739813440411,-500.0,0.000139,7]
[353395424,1739813440421,-500.0,0.000139,7]
[353395425,1739813440431,-500.0,0.000139,7]
[353395426,1739813440440,-500.0,0.000139,7]
[353395427,1739813440449,-500.0,0.000139,7]
[353395428,1739813440459,-500.0,0.000139,7]
[353395429,1739813440468,-237.34,0.000139,7]
[353395430,1739813440477,-500.0,0.000139,7]
[353395431,1739813440486,-500.0,0.000139,7]
[353395432,1739813440496,-500.0,0.000139,7]
[353395433,1739813440506,-500.0,0.000139,7]
[353395434,1739813440516,-500.0,0.000139,7]
[353395435,1739813440525,-500.0,0.000139,7]
[353395436,1739813440534,-500.0,0.000139,7]
[353395437,1739813440544,-500.0,0.000139,7]
[353395438,1739813440553,-500.0,0.000139,7]
[353395439,1739813440562,-500.0,0.000139,7]
[353395440,1739813440572,-500.0,0.000139,7]
[353395441,1739813440581,-500.0,0.000139,7]
[353395442,1739813440591,-500.0,0.000139,7]
[353395443,1739813440600,-500.0,0.000139,7]
[353395444,1739813440610,-500.0,0.000139,7]
[353395445,1739813440619,-500.0,0.000139,7]
[353395446,1739813440628,-500.0,0.000139,7]
[353395447,1739813440638,-500.0,0.000139,7]
[353395448,1739813440647,-500.0,0.000139,7]
[353395449,1739813440657,-500.0,0.000139,7]
[353395450,1739813440666,-500.0,0.000139,7]
[353395451,1739813440676,-500.0,0.000139,7]
[353395452,1739813440686,-500.0,0.000139,7]
[353395453,1739813440696,-500.0,0.000139,7]
[353395454,1739813440705,-500.0,0.000139,7]
[353395455,1739813440715,-150.0,0.00013928,2]
[353395456,1739813440725,-150.0,0.00013928,2]
[353395457,1739813440735,-423.06,0.00013945,2]
[353395458,1739813440745,-500.0,0.00013945,2]
[353395459,1739813440755,-500.0,0.00013945,2]
[353395460,1739813440765,-500.0,0.00013945,2]
[353395461,1739813440775,-500.0,0.00013945,2]
[353395462,1739813440785,-500.0,0.00013945,2]
[353395463,1739813440797,-500.0,0.00013945,2]
[353395464,1739813440807,-500.0,0.00013945,2]
[353395465,1739813440816,-500.0,0.00013945,2]
[353395466,1739813440826,-500.0,0.00013945,2]
[353395467,1739813440835,-500.0,0.00013945,2]
[353395468,1739813440845,-500.0,0.00013945,2]
[353395469,1739813440855,-500.0,0.00013945,2]
[353395470,1739813440865,-500.0,0.00013945,2]
[353395471,1739813440877,-646.25,0.00013945,2]
[353395472,1739813440887,-500.0,0.00013945,2]
[353395473,1739813440897,-500.0,0.00013945,2]
[353395474,1739813440907,-7438.69753278,0.00013947,2]
[353395475,1739813440916,-804.42138366,0.00013979,2]
[353395476,1739813440925,-192.0,0.00013989,2]
[353395477,1739813440935,-982.05507013,0.00013995,2]
[353395478,1739813440945,-982.05507013,0.00013997,2]
[353395479,1739813440956,-982.05507013,0.00013998,2]
[353395480,1739813440966,-300.0,0.00014,2]
[353395481,1739813440975,-500.0,0.00014027,2]
[353395482,1739813440985,-500.0,0.00014027,2]
[353395483,1739813440994,-500.0,0.00014027,2]
[353395484,1739813441005,-990.0,0.00014027,2]
[353395485,1739813441015,-500.0,0.00014027,2]
[353395486,1739813441024,-500.0,0.00014027,2]
[353395487,1739813441035,-500.0,0.00014027,2]
[353395488,1739813441048,-500.0,0.00014027,2]
[353395489,1739813441058,-500.0,0.00014027,2]
[353395490,1739813441068,-500.0,0.00014027,2]
[353395491,1739813441077,-437.02,0.00014027,2]
[353395492,1739813441087,-598.44,0.00014027,2]
[353395493,1739813441098,-502.06,0.00014027,2]
[353395494,1739813441108,-500.0,0.00014027,2]
[353395495,1739813441117,-500.0,0.00014027,2]
[353395496,1739813441127,-500.0,0.00014027,2]
[353395497,1739813441137,-804.42138366,0.00014079,2]
[353395498,1739813441146,-500.0,0.00014109,2]
[353395499,1739813441155,-399.87,0.00014109,2]
[353395500,1739813441164,-500.0,0.00014109,2]
[353395501,1739813441173,-500.0,0.00014109,2]
[353395502,1739813441183,-500.0,0.00014109,2]
[353395503,1739813441193,-248.62234066,0.00014109,2]
[353395504,1739813441203,-500.0,0.00014109,2]
[353395505,1739813441213,-500.0,0.00014109,2]
[353395506,1739813441222,-500.0,0.00014109,2]
[353395507,1739813441232,-500.0,0.00014109,2]
[353395508,1739813441242,-400.12,0.00014109,2]
[353395509,1739813441252,-500.0,0.00014109,2]
[353395510,1739813441262,-150.0,0.00014138,4]
[353395511,1739813441272,-150.0,0.00014138,4]
[353395512,1739813441282,-804.42138366,0.00014179,2]
[353395513,1739813441291,-500.0,0.00014191,2]
[353395514,1739813441302,-500.0,0.00014191,2]
[353395515,1739813441312,-500.0,0.00014191,2]
[353395516,1739813441322,-500.0,0.00014191,2]
[353395517,1739813441332,-549.01,0.00014191,2]
[353395518,1739813441341,-500.0,0.00014191,2]
[353395519,1739813441351,-500.0,0.00014191,2]
[353395520,1739813441360,-248.48,0.00014191,2]
[353395521,1739813441370,-500.0,0.00014191,2]
[353395522,1739813441380,-160.0,0.0001421,5]
[353395523,1739813441389,-316.20531182,0.0001421,5]
[353395524,1739813441399,-500.0,0.00014273,2]
[353395525,1739813441409,-500.0,0.00014273,2]
[353395526,1739813441418,-500.0,0.00014273,2]
[353395527,1739813441428,-500.0,0.00014273,2]
[353395528,1739813441438,-500.0,0.00014273,2]
[353395529,1739813441448,-500.0,0.00014273,2]
[353395530,1739813441458,-500.0,0.00014273,2]
[353395531,1739813441468,-804.42138366,0.00014279,2]
[353395532,1739813441477,-500.0,0.00014356,2]
[353395533,1739813441487,-500.0,0.00014356,2]
[353395534,1739813441497,-500.0,0.00014356,2]
[353395535,1739813441506,-500.0,0.00014356,2]
[353395536,1739813441515,-500.0,0.00014356,2]
[353395537,1739813441525,-500.0,0.00014356,2]
[353395538,1739813441535,-500.0,0.00014356,2]
[353395539,1739813441547,-804.42138366,0.00014379,2]
[353395540,1739813441556,-600.0,0.000144,2]
[353395541,1739813441566,-356.64061152,0.00014405,2]
[353395542,1739813441575,-168.48787744,0.00014411,2]
[353395543,1739813441584,-500.0,0.00014438,2]
[353395544,1739813441594,-500.0,0.00014438,2]
[353395545,1739813441603,-500.0,0.00014438,2]
[353395546,1739813441612,-500.0,0.00014438,2]
[353395547,1739813441622,-500.0,0.00014438,2]
[353395548,1739813441632,-500.0,0.00014438,2]
[353395549,1739813441641,-500.0,0.00014438,2]
[353395550,1739813441651,-804.42138366,0.00014479,2]
[353395551,1739813441660,-1100.0,0.00014503,2]
[353395552,1739813441670,-468.01,0.0001452,2]
[353395553,1739813441679,-500.0,0.0001452,2]
[353395554,1739813441689,-500.0,0.0001452,2]
[353395555,1739813441802,-500.0,0.0001452,2]
[353395556,1739813441813,-500.0,0.0001452,2]
[353395557,1739813441822,-500.0,0.0001452,2]
[353395558,1739813441833,-500.0,0.0001452,2]
[353395559,1739813441842,-600.0,0.0001455,2]
[353395560,1739813441852,-804.42138366,0.00014579,2]
[353395561,1739813441864,-1181.9565742,0.00014601,2]
[353395562,1739813441876,-500.0,0.00014602,2]
[353395563,1739813441886,-380.64,0.00014602,2]
[353395564,1739813441896,-500.0,0.00014602,2]
[353395565,1739813441906,-500.0,0.00014602,2]
[353395566,1739813441917,-500.0,0.00014602,2]
[353395567,1739813441927,-500.0,0.00014602,2]
[353395568,1739813441936,-1000.0,0.00014653,2]
[353395569,1739813441947,-1000.0,0.00014658,2]
[353395570,1739813441956,-1000.0,0.00014676,2]
[353395571,1739813441966,-804.42138366,0.00014679,2]
[353395572,1739813441976,-500.0,0.00014684,2]
[353395573,1739813441986,-407.02,0.00014684,2]
[353395574,1739813441995,-500.0,0.00014684,2]
[353395575,1739813442004,-553.06739375,0.00014684,2]
[353395576,1739813442014,-518.45,0.00014684,2]
[353395577,1739813442024,-151.0,0.000147,2]
[353395578,1739813442034,-151.0,0.000147,2]
[353395579,1739813442046,-151.0,0.000147,2]
[353395580,1739813442055,-151.0,0.000147,2]
[353395581,1739813442065,-600.0,0.000147,2]
[353395582,1739813442074,-157.2280238,0.00014712,2]
[353395583,1739813442083,-153.0,0.00014712,2]
[353395584,1739813442092,-153.0,0.00014712,2]
[353395585,1739813442103,-153.0,0.00014712,2]
[353395586,1739813442113,-1000.0,0.00014727,2]
[353395587,1739813442123,-500.0,0.00014767,2]
[353395588,1739813442132,-500.0,0.00014767,2]
[353395589,1739813442141,-38638.37539949,0.00014773,2]
[353395590,1739813442151,-465.04564709,0.00014776,2]
[353395591,1739813442160,-804.42138366,0.00014779,2]
[353395592,1739813442170,-1000.0,0.00014783,2]
[353395593,1739813442179,-345.0,0.0001479,2]
[353395594,1739813442188,-1000.0,0.00014796,2]
[353395595,1739813442198,-151.0,0.000148,2]
[353395596,1739813442207,-151.0,0.000148,2]
[353395597,1739813442216,-151.0,0.000148,2]
[353395598,1739813442226,-1439.31662556,0.000148,2]
[353395599,1739813442235,-1439.31662556,0.000148,2]
[353395600,1739813442244,-1439.31662556,0.000148,2]
[353395601,1739813442254,-1439.31662556,0.000148,2]
[353395602,1739813442263,-1439.31662556,0.000148,2]
[353395603,1739813442273,-1439.31662556,0.000148,2]
[353395604,1739813442282,-1439.31662556,0.000148,2]
[353395605,1739813442292,-1439.31662556,0.000148,2]
[353395606,1739813442303,-1439.31662556,0.000148,2]
[353395607,1739813442312,-1439.31662556,0.000148,2]
[353395608,1739813442321,-1439.31662556,0.000148,2]
[353395609,1739813442331,-1439.31662556,0.000148,2]
[353395610,1739813442341,-1439.31662556,0.000148,2]
[353395611,1739813442350,-1439.31662556,0.000148,2]
[353395612,1739813442360,-1439.31662556,0.000148,2]
[353395613,1739813442369,-1439.31662556,0.000148,2]
[353395614,1739813442379,-1439.31662556,0.000148,2]
[353395615,1739813442388,-1439.31662556,0.000148,2]
[353395616,1739813442398,-1439.31662556,0.000148,2]
[353395617,1739813442408,-1439.31,0.000148,2]
[353395618,1739813442417,-415.87866598,0.000148,2]
[353395619,1739813442427,-415.87866598,0.000148,2]
[353395620,1739813442436,-415.87866598,0.000148,2]
[353395621,1739813442445,-415.87866598,0.000148,2]
[353395622,1739813442456,-415.87866598,0.000148,2]
[353395623,1739813442465,-415.87866598,0.000148,2]
[353395624,1739813442475,-415.87866598,0.000148,2]
[353395625,1739813442484,-1311.44150986,0.000148,2]
[353395626,1739813442494,-415.87866598,0.000148,2]
[353395627,1739813442504,-415.87866598,0.000148,2]
[353395628,1739813442514,-415.87866598,0.000148,2]
[353395629,1739813442523,-415.87866598,0.000148,2]
[353395630,1739813442533,-415.87866598,0.000148,2]
[353395631,1739813442542,-415.87866598,0.000148,2]
[353395632,1739813442554,-415.87866598,0.000148,2]
[353395633,1739813442564,-415.87866598,0.000148,2]
[353395634,1739813442573,-415.87866598,0.000148,2]
[353395635,1739813442583,-415.87866598,0.000148,2]
[353395636,1739813442593,-415.87866598,0.000148,2]
[353395638,1739813442602,-415.87866598,0.000148,2]
[353395639,1739813442611,-415.87,0.000148,2]
[353395640,1739813442621,-171.79587479,0.00014831,2]
[353395641,1739813442630,-1000.0,0.0001484,2]
[353395642,1739813442640,-500.0,0.00014849,2]
[353395643,1739813442649,-500.0,0.00014849,2]
[353395644,1739813442659,-600.0,0.0001485,2]
[353395645,1739813442669,-1000.0,0.00014852,2]
[353395646,1739813442678,-828.75654214,0.00014859,2]
[353395647,1739813442688,-500.0,0.00014873,2]
[353395648,1739813442698,-500.0,0.00014873,2]
[353395650,1739813442707,-500.0,0.00014873,2]
[353395652,1739813442717,-804.42138366,0.00014879,2]
[353395654,1739813442727,-156.55,0.00014899,2]
[353395656,1739813442737,-826.83390457,0.00014899,2]
[353395658,1739813442746,-374.99246179,0.00014899,2]
[353395660,1739813442756,-500.0,0.00014899,2]
[353395662,1739813442766,-1883.71973344,0.000149,2]
[353395664,1739813442775,-183.1,0.000149,2]
[353395666,1739813442785,-3000.0,0.000149,2]
[353395668,1739813442794,-151.0,0.000149,2]
[353395670,1739813442804,-432.36699328,0.000149,2]
[353395672,1739813442813,-432.36699328,0.000149,2]
[353395673,1739813442827,-432.36699328,0.000149,2]
[353395674,1739813442840,-166693.98157992,0.000149,2]
[353395676,1739813443977,-102.85071314,0.000149,2]
[353395677,1739813444255,-28.53837204,0.00013698,2]
[353395678,1739813444304,-1323.03897,0.00013281,2]
[353395679,1739813444316,-477.305,0.00013281,2]
[353395682,1739814348112,-643.30770554,0.00011374,2]
[353395683,1739814348140,-540.36197479,0.00011489,2]
[353395684,1739814429080,-359.63802521,0.00011489,2]
[353395685,1739814429102,-1047.54384913,0.00012694,2]
[353395686,1739814453143,-379.90963576,0.00012679,2]